Workbook

Sheet Rozpočet 2020
B1: Obec Citice
B2: Rozpočtové opatření č. 8/2020
B3: (v Kč)
B5: Příjmy
B7: Příjmy | C7: Rozpočet schválený | D7: Rozpočtová opatření | L7: Rozpočet po změnách
D8: 1 | E8: 2 | F8: 3 | G8: 4 | H8: 5 | I8: 6 | J8: 7 | K8: 8
B9: Daně z příjmů,zisku,kapitálových výnosů,zboží a služeb | C9: 12454430 | G9: -1138750 | L9: =SUM(C9:K9) -> 11315680
B10: Daně a poplatky z vybraných činností a služeb | C10: 238000 | L10: =SUM(C10:K10) -> 238000
B11: Majetkové daně | C11: 420000 | L11: 420000
B12: Přijaté splátky půjčených prostředků | C12: 132000 | L12: 132000
B13: Přijaté transfery-v tom: | C13: 1905600 | F13: 251290 | G13: 1522087 | I13: 15691 | K13: -1234821 | L13: 2459847
B14: neinv.transf.ze SR-úř.prác.. 300 179 Kč | L14: 0
B15: inv.,nein.transfer od SFŽP…. 210 000 Kč | L15: 0
B16: neinv.transf.ze st.rozpočtu… . 235 600 Kč | L16: 0
B17: neinv.transf.ze SR-MŠMT….. 251 290 Kč | L17: 0
B18: neinv.transf.ze SR-konpen.bonus 1 138 750 | L18: 0
B19: neinv.transf.ze SR-volby kraj…..26 691 Kč | L19: 0
B20: inv.transf.od Karl.kraje.… 277 337 Kč | L20: 0
B21: neinv.transf.od Karl.kraje…….. 20 000 Kč | L21: 0
B22: Předškolní zařízení | C22: 23957 | L22: 23957
B23: Záležitosti kultury | C23: 220000 | L23: 220000
B24: Tělovýchovná činnost | C24: 25000 | L24: 25000
B25: Bytové hospodářství | C25: 619000 | L25: 619000
B26: Nebytové hospodářství | C26: 110600 | L26: 110600
B27: Pohřebnictví | C27: 13000 | L27: 13000
B28: Komunální služby | C28: 86770 | J28: 217000 | L28: 303770
B29: Sběr a svoz odpadů | C29: 540000 | L29: 540000
B30: Bezpečnost a veřejný pořádek | C30: 3000 | L30: 3000
B31: Příjmy z finančních operací | C31: 130000 | L31: 130000
B32: Celkem | C32: =SUM(C9:C31) -> 16921357 | D32: 0 | E32: 0 | F32: 251290 | G32: 383337 | H32: 0 | I32: 15691 | J32: 217000 | K32: -1234821 | L32: =SUM(C32:K32) -> 16553854
B34: Výdaje
B36: Výdaje | C36: Rozpočet schválený | D36: Rozpočtová opatření | L36: Rozpočet po změnách
D37: 1 | E37: 2 | F37: 3 | G37: 4 | H37: 5 | I37: 6 | J37: 7 | K37: 8
B38: Zvláštní veterinární péče | C38: 12000 | L38: =SUM(C38:K38) -> 12000
B39: Pozemní komunikace | C39: 1189500 | L39: 1189500
B40: Dopravní obslužnost | C40: 400000 | G40: 80000 | L40: 480000
B41: Odvádění a čistění odpadních vod | C41: 1015000 | L41: 1015000
B42: Předškolní zařízení - v tom | C42: 769957 | F42: 251290 | L42: 1021247
B43: příspěvek na provoz …..713 957,00 | L43: 0
B44: Základní školy | C44: 10000 | L44: 10000
B45: Činnosti knihovnické | C45: 128000 | L45: 128000
B46: Záležitosti kultury | C46: 781000 | L46: 781000
B47: Ochrana památek | C47: 70000 | L47: 70000
B48: Sdělovací prostředky | C48: 100000 | L48: 100000
B49: Sbor pro občanské záležitosti | C49: 140000 | L49: 140000
B50: Tělových.činnost-provoz Citice č.p. 117 | C50: 385000 | L50: 385000
B51: Tělovýchovná činnost | C51: 1210000 | L51: 1210000
B52: Bytové hospodářství | C52: 1168000 | G52: 730000 | L52: 1898000
B53: Nebytové hospodářství | C53: 403400 | L53: 403400
B54: Veřejné osvětlení | C54: 595000 | E54: 310000 | J54: 121000 | L54: 1026000
B55: Pohřebnictví | C55: 283000 | L55: 283000
B56: Komunální služby | C56: 1278600 | L56: 1278600
B57: Změny technologií vytápění | C57: 1434400 | K57: -1220000 | L57: 214400
B58: Nakládání s odpady | C58: 700000 | L58: 700000
B59: Péče o vzhled obce a veřejnou zeleň | C59: 1451000 | G59: 98000 | K59: -14821 | L59: 1534179
B60: Krizová opatření | C60: 50000 | L60: 50000
B61: Záležitosti požární ochrany | C61: 50000 | L61: 50000
B62: Zastupitelstvo obce | C62: 1126000 | L62: 1126000
B63: Volby do zastupitelstev krajů | G63: 31000 | I63: -4309 | L63: 26691
B64: Činnost místní správy | C64: 2505000 | L64: 2505000
B65: Finanční operace | C65: 279430 | L65: 279430
B66: Celkem | C66: =SUM(C38:C65) -> 17534287 | D66: 0 | E66: 310000 | F66: 251290 | G66: 939000 | H66: 0 | I66: -4309 | J66: 121000 | K66: -1234821 | L66: 17916447
B68: Financování-převod z termínovaných vkladů na BÚ,spoř.účet (položka 8117) | F68: 6000000 | H68: 33000 | L68: =SUM(C68:K68) -> 6033000
B69: Financování-převod na termínované vklady (položka 8118) | D69: 2000000 | H69: 83000 | L69: =SUM(C69:K69) -> 2083000
B71: Rekapitulace:
B72: Bilance | C72: Rozpočet schválený | D72: Rozpočtová opatření | L72: Rozpočet po změnách
D73: 1 | E73: 2 | F73: 3 | G73: 4 | H73: 5 | I73: 6 | J73: 7 | K73: 8
B74: Příjmy | C74: =C32 -> 16921357 | D74: 0 | E74: 0 | F74: 251290 | G74: 383337 | H74: 0 | I74: 15691 | J74: 217000 | K74: -1234821 | L74: =SUM(C74:K74) -> 16553854
B75: Výdaje | C75: =C66 -> 17534287 | D75: 0 | E75: 310000 | F75: 251290 | G75: 939000 | H75: 0 | I75: -4309 | J75: 121000 | K75: -1234821 | L75: =SUM(C75:K75) -> 17916447
B76: Rozdíl | C76: =C74-C75 -> -612930 | D76: 0 | E76: -310000 | F76: 0 | G76: -555663 | H76: 0 | I76: 20000 | J76: 96000 | K76: 0 | L76: =SUM(C76:K76) -> -1362593
B78: Financování-převod z termínovaných vkladů na BÚ,spoř.účet (položka 8117) | F78: 6000000 | H78: 33000 | L78: =SUM(C78:K78) -> 6033000
B79: Financování-převod na termínované vklady (položka 8118) | D79: 2000000 | H79: 83000 | L79: =SUM(C79:K79) -> 2083000
A81: Počáteční stav BÚ a pokladny k 1.1.2020 …….…..…….…………. 3 849 285,03 Kč
A83: Počáteční stav termínovaných vkladů k 1.1.2020 …………………. 10 032 718,56 Kč
D85: Václav Mach
B86: V Citicích dne 30.12.2020 | D86: starosta
B87: Současně byla provedena předběžná řídící kontrola.
A88: Příkazce operace: Václav Mach, starosta obce
B89: Zpracoval: Martina Baborovská
B91: Vyvěšeno:
B93: Sejmuto:
